Cogmind - Beta 17.1 @@@ ROGUE MODE // 2026.09.02 @ 13:37:02 Player: Scuttle Result: Self-destructed Performance ------------- Evolutions (2) 1000 Regions Visited (4) 800 Robots Destroyed (2) 10 Value Destroyed (2) 2 Prototype IDs (0) 0 Alien Tech Used (0) 0 Bonus (470) 470 TOTAL SCORE: 2282 Bonus ------- Pacifist 470 Cogmind --------- Core Integrity 550/550 Matter 227/300 Energy 85/100 System Corruption 0% Temperature Cool (0) Movement Core (50) Location -8/Materials Parts ------- > --- POWER (1) -------- (None) > --- PROPULSION (2) --- (None) > --- UTILITY (6) ------ Weight Redist. System > --- WEAPON (2) ------- Heavy Mace > --- INVENTORY (5) ---- Weight Redist. System Heavy Mace Peak State ------------ > --- POWER ------------ Deuterium Engine > --- PROPULSION ------- (None) > --- UTILITY ---------- Weight Redist. System Weight Redist. System > --- WEAPON ----------- Heavy Mace > --- INVENTORY -------- Heavy Mace [Rating: 10] Favorites ----------- Power Deuterium Engine Engine Deuterium Engine Propulsion None Utility Weight Redist. System Device Weight Redist. System Weapon Small Laser Energy Gun Small Laser Impact Weapon Heavy Mace Special Melee Weapon Datajack Build | -11 -10 -10 -9 -8 ------- Run | Yrd Mat Min Mat Mat Slots Evolved 4 | . . . 2 2 Power . | . . . . . Propulsion . | . . . . . Utility 4 | . . . 2 2 Weapon . | . . . . . Parts Attached 8 | 2 . . 2 4 Power 1 | . . . . 1 Engine 1 | . . . . 1 Core . | . . . . . Reactor . | . . . . . Propulsion . | . . . . . Treads . | . . . . . Leg . | . . . . . Wheel . | . . . . . Hover . | . . . . . Flight . | . . . . . Utility 2 | . . . . 2 Device 2 | . . . . 2 Storage . | . . . . . Processor . | . . . . . Hackware . | . . . . . Protection . | . . . . . Artifact . | . . . . . Weapon 5 | 2 . . 2 1 Energy Gun 2 | 2 . . . . Energy Cannon . | . . . . . Ballistic Gun . | . . . . . Ballistic Cannon . | . . . . . Launcher . | . . . . . Special Weapon . | . . . . . Impact Weapon 1 | . . . . 1 Slashing Weapon . | . . . . . Piercing Weapon . | . . . . . Special Melee Weapon 2 | . . . 2 . Unidentified Prototypes . | . . . . . Parts Lost 4 | . . 2 2 . Power . | . . . . . Propulsion . | . . . . . Utility . | . . . . . Weapon 4 | . . 2 2 . Highest Loss Streak 2 | . . 2 2 . To Critical Strikes . | . . . . . Average Backups . | . . . . . Power . | . . . . . Propulsion . | . . . . . Utility . | . . . . . Weapon . | . . . . . Tool/Special . | . . . . . Unused Backups 1 | . . . . 1 Power . | . . . . . Propulsion . | . . . . . Utility . | . . . . . Weapon 1 | . . . . 1 Tool/Special . | . . . . . Average Slot Usage (%) 17 | . 28 28 13 10 Energy Gun 10 | . 28 28 . . Impact Weapon 2 | . . . . 7 Special Melee Weapon 4 | . . . 13 . Peak Build Rating 10 | 2 2 2 2 10 Average Rating 2 | 1 2 1 1 3 On Entrance . | . 2 2 . . Avg Prop Armor Cover (%) . | . . . . . Naked Turns 27 | . . 1 21 5 Heaviest Build 3 | 2 2 2 2 3 Greatest Support 3 | 3 3 3 3 3 Greatest Overweight (x) . | . . . . . Average Overweight (x) . | . . . . . Largest Inventory Capacity 5 | 5 5 5 5 5 Average Capacity 5 | 5 5 5 5 5 Most Carried 2 | . . . . 2 Average Carried . | . . . . 1 Final Capacity 5 | 5 5 5 5 5 Final Carried 2 | . . . . 2 Class Distribution -------------------- 100% | Mutant Dominant Class ---------------- Mutant | -10/Materials Mutant | -10/Mines Mutant | -9/Materials Mutant | -8/Materials Resources | -11 -10 -10 -9 -8 ----------- Run | Yrd Mat Min Mat Mat Matter Collected 168 | 109 . 31 . 28 Remotely . | . . . . . Salvage Created 46 | . . . . 46 Parts . | . . . . . Haulers Intercepted . | . . . . . Recyclers Shooed . | . . . . . Parts Field Recycled . | . . . . . Retrieved Matter . | . . . . . Parts Self-Destructed . | . . . . . Prevented . | . . . . . Parts Restored . | . . . . . Kills | -11 -10 -10 -9 -8 ------- Run | Yrd Mat Min Mat Mat Combat Hostiles Destroyed . | . . . . . Classes Destroyed 1 | . . . . 1 Worker 2 | . . . . 2 Best Kill Streak 2 | . . . . 2 Combat Bots Only . | . . . . . Max Kills in Single Turn 1 | . . . . 1 Gunslinging . | . . . . . Exploded . | . . . . . Melee . | . . . . . Uniques/NPCs Destroyed . | . . . . . Combat | -11 -10 -10 -9 -8 -------- Run | Yrd Mat Min Mat Mat Hostile Shots Fired 40 | . . 13 27 . Missed 18 | . . 6 12 . Hits 22 | . . 7 15 . Projectile 22 | . . 7 15 . AOE 7 | . . 7 . . Damage Taken 459 | . . 265 194 . Core 292 | . . 125 167 . Absorbed by Shields . | . . . . . Core Remaining (%) 69 | 100 . 50 58 . Volleys Fired . | . . . . . Largest . | . . . . . Hottest . | . . . . . Shots Fired . | . . . . . Gun . | . . . . . Cannon . | . . . . . Launcher . | . . . . . Special . | . . . . . Kinetic . | . . . . . Thermal . | . . . . . Explosive . | . . . . . Electromagnetic . | . . . . . Robot Hit Streak . | . . . . . Robot Miss Streak . | . . . . . Penetration Max . | . . . . . Secondary Targets . | . . . . . Shots Hit Robots 4 | . . . 1 3 Core Hits 1 | . . . 1 . Critical Kills . | . . . . . Critical Parts Destroyed . | . . . . . Critical Strikes . | . . . . . Melee Attacks 7 | . . . 1 6 Impact 6 | . . . . 6 Slashing . | . . . . . Piercing . | . . . . . Sneak Attacks 4 | . . . 1 3 Combat Hostiles . | . . . . . Follow-up Attacks . | . . . . . Damage Inflicted 307 | . . . 18 289 Guns . | . . . . . Cannons . | . . . . . Explosions . | . . . . . Melee 289 | . . . . 289 Ramming 18 | . . . 18 . Kinetic . | . . . . . Thermal . | . . . . . Explosive . | . . . . . Electromagnetic . | . . . . . Impact 289 | . . . . 289 Slashing . | . . . . . Piercing . | . . . . . Highest Corruption . | . . . . . Average Corruption . | . . . . . Corruption Purged . | . . . . . Corruption Blocked . | . . . . . Overload Shots . | . . . . . Overflow Damage 149 | . . . . 149 Projectiles . | . . . . . Explosions . | . . . . . Melee 149 | . . . . 149 Knockbacks 1 | . . . . 1 Impact 1 | . . . . 1 Kinetic . | . . . . . Secondary . | . . . . . Self-Inflicted Damage 8 | . . . 8 . Shots . | . . . . . Rammed 5 | . . . 5 . Targets Rammed 5 | . . . 5 . Kicked . | . . . . . Crushed . | . . . . . Highest Temperature . | . . . . . Average Temperature . | . . . . . Received Heat Transfer 96 | . . 12 84 . Siege Activations . | . . . . . Martial Activations . | . . . . . Shielding Activations . | . . . . . Robots Disrupted . | . . . . . Combat Hostiles . | . . . . . Robots Corrupted 2 | . . . . 2 Combat Hostiles . | . . . . . Parts Fried . | . . . . . Impact Corruptions 7 | . . . . 7 Robots Melted . | . . . . . Combat Hostiles . | . . . . . Parts Melted . | . . . . . Heat Transferred . | . . . . . Parts Sabotaged . | . . . . . Parts Stolen . | . . . . . Parts Stripped . | . . . . . Power Chain Reactions . | . . . . . Alert | -11 -10 -10 -9 -8 ------- Run | Yrd Mat Min Mat Mat Maximum Alert Level . | . . . . . Low Security (%) 100 | 100 100 100 100 100 Level 1 . | . . . . . Level 2 . | . . . . . Level 3 . | . . . . . Level 4 . | . . . . . Level 5 . | . . . . . High Security . | . . . . . Max Security . | . . . . . Peak Influence 35 | . . 35 15 18 Initial 5 | . . . 1 5 Average 8 | . . 21 1 11 Influence Increases 88 | . . 45 15 28 Destroy 0b10 Robot/NC 10 | . . . . 10 Destroy Structure 3 | . . . . 3 Partial Spotted 15 | . . . . 15 Lose Combat Pursuer 60 | . . 45 15 . Influence Decreases 80 | . . 40 5 35 Entered New Map 14 | . . . 4 10 Time Decay 46 | . . 20 1 25 Lost Part 20 | . . 20 . . Squads Dispatched 3 | . . . 3 . Investigation 1 | . . . 1 . Extermination . | . . . . . Reinforcement 2 | . . . 2 . Assault . | . . . . . Garrison . | . . . . . Intercept . | . . . . . Searches Triggered . | . . . . . Construction Impeded . | . . . . . Haulers Reinforced . | . . . . . Active Scanning Responses . | . . . . . Cargo Convoy Interrupts . | . . . . . Stealth | -11 -10 -10 -9 -8 --------- Run | Yrd Mat Min Mat Mat Distress Signals 1 | . . . 1 . Communications Jammed . | . . . . . Distress Signals . | . . . . . Times Spotted 24 | . . 7 15 2 Peak Tracking Total 13 | . . 11 13 2 Tactical Retreats 4 | . . 3 1 . Traps | -11 -10 -10 -9 -8 ------- Run | Yrd Mat Min Mat Mat Traps Triggered 1 | . . . 1 . Indirectly . | . . . . . Trap Hack Attempts . | . . . . . Triggered . | . . . . . Disarmed . | . . . . . Reprogrammed . | . . . . . Reused . | . . . . . Traps Extracted . | . . . . . Installed . | . . . . . Triggered . | . . . . . Machines | -11 -10 -10 -9 -8 ---------- Run | Yrd Mat Min Mat Mat Machines Disabled . | . . . . . Max in Single Turn . | . . . . . Machines Repaired . | . . . . . Machines Dismantled . | . . . . . Machines Sabotaged . | . . . . . Overloaded Fab Kills . | . . . . . Hacking | -11 -10 -10 -9 -8 --------- Run | Yrd Mat Min Mat Mat Machines Accessed 1 | . . . 1 . Terminals 1 | . . . 1 . Fabricators . | . . . . . Repair Stations . | . . . . . Recycling Units . | . . . . . Scanalyzers . | . . . . . Garrison Access . | . . . . . Total Hacks 3 | . . . 3 . Successful . | . . . . . Failed 3 | . . . 3 . Catastrophic 1 | . . . 1 . Database Lockouts . | . . . . . Manual . | . . . . . Terminals 3 | . . . 3 . Fabricators . | . . . . . Repair Stations . | . . . . . Recycling Units . | . . . . . Scanalyzers . | . . . . . Garrison Access . | . . . . . Terminal Hacks . | . . . . . Fabricator Hacks . | . . . . . Repair Station Hacks . | . . . . . Recycling Unit Hacks . | . . . . . Scanalyzer . | . . . . . Garrison Access Hacks . | . . . . . Unauthorized Hacks . | . . . . . Terminals . | . . . . . Fabricators . | . . . . . Repair Stations . | . . . . . Recycling Units . | . . . . . Scanalyzers . | . . . . . Garrison Access . | . . . . . Data Cores Recovered . | . . . . . Used . | . . . . . Hacking Detections 1 | . . . 1 . Full Trace Events 1 | . . . 1 . Feedback Events . | . . . . . Feedback Blocked . | . . . . . Robot Schematics Acquired . | . . . . . Robots Built . | . . . . . Authchips . | . . . . . Time . | . . . . . Total Robot Build Rating . | . . . . . Part Schematics Acquired . | . . . . . Parts Built . | . . . . . Authchips . | . . . . . Time . | . . . . . Total Part Build Rating . | . . . . . Part Studies Acquired . | . . . . . Parts Repaired . | . . . . . Time . | . . . . . Parts Recycled . | . . . . . Recycled Matter . | . . . . . Retrieved Matter . | . . . . . Retrieved Components . | . . . . . Parts Scanalyzed . | . . . . . Part Schematics Acquired . | . . . . . Parts Damaged . | . . . . . Bothacking | -11 -10 -10 -9 -8 ------------ Run | Yrd Mat Min Mat Mat Used RIF Installer . | . . . . . Robots Hacked . | . . . . . Non-combat . | . . . . . Combat . | . . . . . Robot Hacks Applied . | . . . . . Relay Couplers Released . | . . . . . Fabnet Peak Effective % . | . . . . . Robots Rewired . | . . . . . Allies Hacked . | . . . . . Hacks Repelled . | . . . . . Allies | -11 -10 -10 -9 -8 -------- Run | Yrd Mat Min Mat Mat Total Allies . | . . . . . Largest Group . | . . . . . Highest-Rated Group . | . . . . . Highest-Rated Ally . | . . . . . Total Orders . | . . . . . Ally Attacks . | . . . . . Total Damage . | . . . . . Kills . | . . . . . Allies Corrupted . | . . . . . Allies Melted . | . . . . . Intel | -11 -10 -10 -9 -8 ------- Run | Yrd Mat Min Mat Mat Active Infowar (turns) . | . . . . . Robot Analysis Total . | . . . . . Derelict Logs Recovered . | . . . . . Drone Launches . | . . . . . Drone Recoveries . | . . . . . Exploration | -11 -10 -10 -9 -8 ------------- Run | Yrd Mat Min Mat Mat Turns Passed 238 | 20 24 53 76 65 Spaces Moved 398 | 33 48 105 133 79 Core 398 | 33 48 105 133 79 Treads . | . . . . . Legs . | . . . . . Wheels . | . . . . . Hover . | . . . . . Flight . | . . . . . Fastest Speed 50 | 50 50 50 50 50 Average Speed 50 | 50 50 50 50 50 Slowest Speed 50 | 50 50 50 50 50 Overloaded Moves . | . . . . . Propulsion Burnouts . | . . . . . Robots Hopped . | . . . . . Potential Cave-ins . | . . . . . Cave-ins Triggered . | . . . . . Exploration Rate (%) 16 | 3 12 32 21 13 Regions Visited 4 Branch Regions 1 Pre-discovered Areas . | . . . . . Known Exits Taken . | . . . . . Unknown Exits Taken 4 | 1 1 1 1 . Scrap Searched . | . . . . . Spaces Dug 3 | . . . . 3 Terrain Destroyed 3 | . . . . 3 Melee 3 | . . . . 3 Projectile . | . . . . . AOE . | . . . . . Terrain Rammed . | . . . . . Walls Destroyed . | . . . . . Machines Disabled . | . . . . . Actions | -11 -10 -10 -9 -8 --------- Run | Yrd Mat Min Mat Mat Total 419 | 34 47 104 140 94 Wait . | . . . . . Move 395 | 32 47 104 133 79 Hop . | . . . . . Pick Up 2 | . . . . 2 Fast Attach 7 | 2 . . 2 3 Attach 1 | . . . . 1 Detach 2 | . . . . 2 Swap . | . . . . . Drop 1 | . . . . 1 Fire . | . . . . . Melee 7 | . . . 1 6 Ram 4 | . . . 4 . Kick . | . . . . . Crush . | . . . . . Escape Stasis . | . . . . . Rewire . | . . . . . Trap . | . . . . . Miscellaneous . | . . . . . Route ------- -11/Scrapyard -10/Materials -10/Mines -9/Materials -8/Materials History --------- Turn | Location | Event 10 | -11/Scrapyard | Discovered new exit (range 14) 21 | -11/Scrapyard | Entered Materials 25 | -10/Materials | Discovered new exit (range 15) 45 | -10/Materials | Entered Mines 58 | -10/Mines | Discovered new exit (range 12) 67 | -10/Mines | Assembled infested the area 98 | -10/Mines | Entered Materials 98 | -9/Materials | Evolved 2 slots: Utility x2 171 | -9/Materials | Discovered new exit (range 5) 174 | -9/Materials | Entered another Materials area 174 | -8/Materials | Evolved 2 slots: Utility x2 239 | -8/Materials | Self-destructed Last Messages --------------- 00214_ Sneak attack on K-01 Serf. 00214_ Destroyed Wheel. 00214_ Destroyed Sml. Matter Pod. 00214_ K-01 Serf system corrupted by crushing effect. 00214_ K-01 Serf knocked back. 00215_ K-01 Serf system terminally corrupted. 00217_ Sneak attack on K-01 Serf. 00217_ Destroyed Wheel. 00217_ Destroyed Sml. Matter Pod. 00217_ Destroyed Lgt. Ion Engine. 00217_ K-01 Serf system corrupted by crushing effect. 00218_ K-01 Serf system terminally corrupted. 00219_ Acquired 28 matter. 00220_ Acquired Weight Redist. System. 00230_ Acquired Deuterium Engine. 00233_ Dropped Deuterium Engine. 00237_ Sneak attack on A-02 Transporter. 00237_ Destroyed Ion Engine. 00237_ Destroyed Transport Network Coupler. 00237_ A-02 Transporter system corrupted by crushing effect. Map ----- +----------------------------------------------------+ | ?????????????????????????????????????????????????? | | ?????????????????????????????????????????????????? | | ?????????????????????????????????????????????????? | | ?????????????????????????????????????????????????? | | ?????????????????????????????????????????????????? | | ?????????????????????????????????????????????????? | | ?????????????????????????????????????????????????? | | ?????????????????????????????????????????????????? | | ?????????????????????????????????????????????????? | | ?????????????????????????????????????????????????? | | ???????????????????????? ???????????????????????? | | ???????????????????????? ???????????????????????? | | ???????????????????????? ???????????????????????? | | ???????????????????????? ???????????????????????? | | ???????????????????????? ???????????????????????? | | ??????????????????????? ???????????????????????? | | ???????????????????????? ???????????????????????? | | ????????????????????????! #??????????????????????? | | ???????????????????????? u#??????????????????????? | | ???????????????????????? #??????????????????????? | | ????????????????????????# #??????????????????????? | | ?????????????????########t#??????????????????????? | | ?????????????????# #a###????????????????????? | | ?????????????????# """# #????????????????????? | | ?????????????????# """# #????????????????????? | | ?????????????????# """#@ # #????????????? | | ?????????????????# + w ] ]#????????????? | | ?????????????????# * ] # # = #????????????? | | ?????????????????######## #??##+###????????????? | | ????????????????????????# ##### ######### ????? | | ????????????????????????# ???? | | ????????????????????????# ???? | | ????????????????????????# ???? | | ????????????????????????# t###+###########??????? | | ????????????????????????# # #??????????????? | | ????????????????????????# # #??????????????? | | ????????????????????????# # !!! #??????????????? | | ???????????????????????? # ! #??????????????? | | ??????????????????????? # ! #??????????????? | | ?????????????????????? # #??????????????? | | ?????????????????????###+####% #??????????????? | | ????????????????????????????#####"#??????????????? | | ???????????????????????????????#############?????? | | ???????????????????????????????#" #???? | | ???????????????????????????????## """" """?????? | | ????????????????????????????????# """" "???? ?? | | ????????????????????????????????# """" " " ? | | ????????????????????????????????# # T | | ????????????????????????????????#/##+###+##### | | ????????????????????????????????# | +----------------------------------------------------+ Best States ------------- Heat Dissipation 31 Energy Generation 5 Energy Capacity 100 Matter Stores 247 Matter Capacity 300 Sight Range 16 Terrain Scan Density 10 Evasion (%) 50 Item Schematics ----------------- None Robot Schematics ------------------ None Fabricated ------------ Nothing Repaired ---------- Nothing Studied --------- None Alien Tech Used ----------------- None Achievements -------------- None Challenges ------------ None Game ------ Seed AssaultPointLayer Manual? 0 Play Time 00:06:10 Cumulative 631.6 hours Start 2026.09.02 @ 13:31:21 End 2026.09.02 @ 13:37:02 Sessions 1 Manual Loads 0 Difficulty Rogue Special Mode None Game No. 264 Rogue 264 Adventurer 0 Explorer 0 Win Type - Total 38 Types 17/4/6/2/1/2/2/2/1/1 Lore% 91 Gallery% 83 Achievement% 78 Wizard Run 0 Options --------- Layout 0 ASCII 0 Keyboard 1 Movement Arrows Keybinds 0 Fullscreen 2 Font 18/Terminus Map View 76x50 Zoom Use 0% Tactical HUD 1 Map Filters BRIGHTNESS(90)|SATURATION(90) Filters NONE Steam 1 RUN: 56038ee0-e399-4797-b569-5b774446340d